bitfinex-derivatives/quotes_BTCF0:USTF0_20260127
["timestamp","ask_amount","ask_price","bid_price","bid_amount"]
[1769473287033,0.01198246,88380.0,88365.0,0.06539]
[1769473287745,0.01198246,88380.0,88365.0,0.07136732]
[1769473288941,0.01198246,88373.0,88365.0,0.06539]
[1769473289133,0.01198246,88371.0,88355.0,0.16962886]
[1769473289332,0.01198246,88371.0,88354.0,0.16962886]
[1769473289544,0.01198246,88369.0,88354.0,0.16962886]
[1769473289742,0.01198246,88369.0,88348.0,0.01195949]
[1769473289944,0.01198246,88367.0,88348.0,0.01195949]
[1769473290341,0.01198246,88367.0,88349.0,0.01133]
[1769473290542,0.01198246,88367.0,88350.0,0.01195949]
[1769473290743,0.01198246,88365.0,88350.0,0.01195949]
[1769473291345,0.11317594,88364.0,88350.0,0.01195949]
[1769473291537,0.01198246,88363.0,88350.0,0.01195949]
[1769473292240,0.11317722,88362.0,88350.0,0.01195949]
[1769473293045,0.11317722,88362.0,88351.0,0.13564813]
[1769473293447,0.11317722,88362.0,88352.0,0.01195949]
[1769473293842,0.01198246,88367.0,88352.0,0.01195949]
[1769473294145,0.12515968,88366.0,88352.0,0.01195949]
[1769473294350,0.01198246,88366.0,88352.0,0.01195949]
[1769473294646,0.11317722,88365.0,88352.0,0.01195949]
[1769473295656,0.01670727,88368.0,88352.0,0.01195949]
[1769473296453,0.01670727,88366.0,88352.0,0.01195949]
[1769473296836,0.01670727,88371.0,88352.0,0.01195949]
[1769473297049,0.11317466,88365.0,88352.0,0.01195949]
[1769473297247,0.01670727,88367.0,88352.0,0.01195949]
[1769473297550,0.11866727,88366.0,88352.0,0.01195949]
[1769473298152,0.11317402,88365.0,88352.0,0.01195949]
[1769473299353,0.01670727,88373.0,88353.0,0.01642876]
[1769473299554,0.1881,88407.0,88357.0,0.01642876]
[1769473299555,0.10196,88374.0,88357.0,0.01642876]
[1769473299752,0.1131753,88370.0,88357.0,0.01642876]
[1769473300054,0.11866727,88374.0,88357.0,0.01642876]
[1769473300255,0.11316953,88373.0,88357.0,0.01642876]
[1769473300455,0.11866727,88374.0,88357.0,0.01642876]
[1769473300754,0.11316953,88373.0,88357.0,0.01642876]
[1769473302448,0.11316953,88373.0,88358.0,0.01642876]
[1769473302849,0.10196,88375.0,88358.0,0.01642876]
[1769473303049,0.11316633,88374.0,88358.0,0.01642876]
[1769473305658,0.11316633,88374.0,88359.0,0.011329]
[1769473306157,0.1298736,88374.0,88359.0,0.02775776]
[1769473306367,0.1298736,88374.0,88360.0,0.01642876]
[1769473307860,0.1298736,88374.0,88365.0,0.011328]
[1769473307861,0.11316633,88374.0,88365.0,0.011328]
[1769473308064,0.011326,88385.0,88350.0,0.26563621]
[1769473308065,0.11866727,88386.0,88370.0,0.01642876]
[1769473308560,0.11316441,88381.0,88371.0,0.01793278]
[1769473308755,0.06360582,88391.0,88360.0,0.10196]
[1769473308756,0.02892946,88392.0,88373.0,0.02880234]
[1769473309063,0.11315033,88388.0,88380.0,0.09044702]
[1769473309467,0.02892946,88392.0,88380.0,0.09044702]
[1769473309665,0.11315033,88391.0,88380.0,0.09044702]
[1769473309962,0.11315033,88391.0,88381.0,0.02880234]
[1769473310165,0.10196064,88393.0,88381.0,0.02880234]
[1769473310352,0.10196064,88393.0,88383.0,0.02880234]
[1769473312560,0.10196064,88393.0,88384.0,0.09044702]
[1769473314367,0.10196064,88393.0,88383.0,0.11924936]
[1769473315464,0.10196064,88393.0,88384.0,0.02880234]
[1769473316468,6.4e-07,88393.0,88384.0,0.02880234]
[1769473316770,6.4e-07,88393.0,88385.0,0.02880234]
[1769473321672,6.4e-07,88393.0,88375.0,0.16962886]
[1769473321673,0.03121445,88391.0,88372.0,0.16962886]
[1769473321864,0.11313624,88392.0,88352.0,0.04842566]
[1769473321865,0.01630946,88377.0,88352.0,0.04842566]
[1769473322062,0.01630946,88375.0,88358.0,0.05975466]
[1769473322260,0.29836,88379.0,88358.0,0.05975466]
[1769473322261,0.01630946,88373.0,88358.0,0.04842566]
[1769473322571,0.01630946,88373.0,88360.0,0.04958297]
[1769473322772,0.10196,88374.0,88363.0,0.04958297]
[1769473324073,0.10196,88376.0,88363.0,0.04958297]
[1769473326466,0.10196,88376.0,88364.0,0.06095359]
[1769473328478,0.10196,88376.0,88364.0,0.04962559]
[1769473330471,0.05076167,88375.0,88360.0,0.05076167]
[1769473330670,0.05076167,88375.0,88361.0,0.20824501]
[1769473333072,0.05076167,88375.0,88342.0,0.0796]
[1769473333073,0.05130112,88371.0,88351.0,0.05130112]
[1769473333674,0.0512987,88369.0,88351.0,0.05130112]
[1769473333883,0.0512987,88365.0,88352.0,0.20824501]
[1769473334180,0.0512987,88365.0,88347.0,0.25954371]
[1769473334580,0.05155766,88364.0,88347.0,0.25954371]
[1769473335684,0.05155766,88364.0,88350.0,0.16378358]
[1769473337284,0.05155766,88364.0,88351.0,0.20824501]
[1769473344494,0.10196,88365.0,88355.0,0.11190791]
[1769473345193,0.10836369,88369.0,88355.0,0.11190791]
[1769473345395,0.10196,88368.0,88359.0,0.16378358]
[1769473345590,0.21513338,88368.0,88356.0,0.11190791]
[1769473347397,0.10836369,88367.0,88355.0,0.20824501]
[1769473348000,0.1131721,88366.0,88355.0,0.20824501]
[1769473350699,0.1131721,88366.0,88352.0,0.11190791]
[1769473350905,0.1131721,88366.0,88353.0,0.32015292]
[1769473352700,0.1131721,88366.0,88354.0,0.11190791]
[1769473353506,0.1131721,88366.0,88357.0,0.11190791]
[1769473354299,0.1131721,88366.0,88354.0,0.11190791]
[1769473355918,0.1131721,88366.0,88357.0,0.11190791]
[1769473356907,0.22153579,88366.0,88356.0,0.16378358]
[1769473357113,0.1131721,88366.0,88357.0,0.20824501]
[1769473357315,0.1131721,88366.0,88355.0,0.11190791]
[1769473362517,0.10196,88368.0,88357.0,0.11190791]
[1769473362912,0.11317274,88367.0,88357.0,0.11190791]
[1769473363821,0.07416277,88379.0,88356.0,0.16378358]
[1769473363822,0.10196,88376.0,88359.0,0.12323691]
[1769473364016,0.10196,88376.0,88358.0,0.20824501]
[1769473364017,0.10196,88376.0,88361.0,0.11190791]
[1769473364211,0.21513082,88376.0,88361.0,0.11190791]
[1769473365021,0.10836369,88375.0,88361.0,0.11190791]
[1769473365208,0.011327,88370.0,88358.0,0.20824501]
[1769473365412,0.10836369,88371.0,88361.0,0.20824501]
[1769473365614,0.10836369,88371.0,88358.0,0.20824501]
[1769473370825,0.10836369,88371.0,88360.0,0.16378358]
[1769473371225,0.21283996,88376.0,88361.0,0.11556076]
[1769473371528,0.22404757,88375.0,88361.0,0.32380577]
[1769473372730,0.22404757,88375.0,88362.0,0.11556076]
[1769473375228,0.12220696,88374.0,88361.0,0.20824501]
[1769473379636,0.11087996,88374.0,88361.0,0.20824501]
[1769473380322,0.11087996,88374.0,88361.0,0.32380577]
[1769473380732,0.11087996,88374.0,88361.0,0.11556076]
[1769473381335,0.011327,88373.0,88361.0,0.11556076]
[1769473381631,0.11087996,88374.0,88361.0,0.11556076]
[1769473381832,0.11087996,88374.0,88362.0,0.20824501]
[1769473383133,0.12220696,88374.0,88362.0,0.20824501]
[1769473383526,0.10196,88376.0,88365.0,0.11556076]
[1769473383731,0.40488,88377.0,88365.0,0.11556076]
[1769473383933,0.11087996,88379.0,88366.0,0.20824501]
[1769473384232,0.11315929,88376.0,88364.0,0.11556076]
[1769473384435,0.11087996,88379.0,88364.0,0.11556076]
[1769473384628,0.11087996,88379.0,88365.0,1e-08]
[1769473384629,0.11315929,88378.0,88365.0,1e-08]
[1769473384829,0.11087996,88377.0,88356.0,0.21752076]
[1769473385132,0.11087996,88373.0,88356.0,0.21752076]
[1769473385730,0.11315865,88372.0,88356.0,0.21752076]
[1769473385931,0.11087996,88371.0,88356.0,0.21752076]
[1769473386231,0.11087996,88371.0,88357.0,0.0928]
[1769473386734,0.11316825,88370.0,88357.0,0.0928]
[1769473387432,0.11316825,88370.0,88357.0,0.20836076]
[1769473387829,0.11316825,88370.0,88358.0,0.11556076]
[1769473388136,0.11316825,88370.0,88361.0,0.09066161]
[1769473388729,0.11316825,88370.0,88362.0,0.09066161]
[1769473391241,0.11316825,88370.0,88362.0,0.20622237]
[1769473393533,0.11087996,88376.0,88362.0,0.20622237]
[1769473393939,0.11316569,88375.0,88362.0,0.20622237]
[1769473394544,0.11316569,88375.0,88363.0,0.09066161]
[1769473394940,0.11316569,88375.0,88364.0,0.11556076]
[1769473395142,0.11316569,88375.0,88365.0,0.11556076]
[1769473395338,0.10196,88374.0,88365.0,0.11556076]
[1769473396044,0.11316185,88373.0,88365.0,0.11556076]
[1769473407154,0.11316185,88373.0,88365.0,0.36556076]
[1769473409754,0.11316185,88373.0,88366.0,0.11804232]
[1769473410054,0.29844,88385.0,88373.0,0.11804232]
[1769473410452,0.11316121,88383.0,88373.0,0.11804232]
[1769473410651,0.29844,88385.0,88373.0,0.11804232]
[1769473410848,0.11316121,88384.0,88373.0,0.11804232]
[1769473411154,0.11316121,88384.0,88374.0,0.09066161]
[1769473411359,0.11316121,88384.0,88377.0,0.11804232]
[1769473412165,0.29844,88385.0,88377.0,0.11804232]
[1769473414256,0.10196,88387.0,88377.0,0.11804232]
[1769473414656,0.00085138,88387.0,88377.0,0.11804232]
[1769473414852,0.10865609,88396.0,88377.0,0.11804232]
[1769473414853,0.4304,88394.0,88378.0,0.09066161]
[1769473415247,0.11314649,88389.0,88378.0,0.09066161]
[1769473415451,0.4304,88394.0,88378.0,0.09066161]
[1769473415858,0.11314073,88392.0,88378.0,0.09066161]
[1769473416454,0.11314073,88392.0,88376.0,0.011327]
[1769473416455,0.11314073,88392.0,88379.0,0.10198761]
[1769473416656,0.12,88410.0,88388.0,0.011325]
[1769473416849,0.10196,88407.0,88390.0,0.011325]
[1769473417053,0.11314073,88403.0,88390.0,0.011325]
[1769473417253,0.10196,88407.0,88390.0,0.011325]
[1769473417558,0.10196,88407.0,88386.0,0.09066161]
[1769473417559,0.11312409,88406.0,88386.0,0.10198661]
[1769473417764,0.22196,88407.0,88390.0,0.09066161]
[1769473418151,0.11312409,88406.0,88390.0,0.09066161]
[1769473418352,0.11312409,88406.0,88389.0,0.09066161]
[1769473419262,0.11312409,88406.0,88390.0,0.00476298]
[1769473421263,0.23153642,88406.0,88390.0,0.00476298]
[1769473422657,0.011322,88412.0,88390.0,0.00476298]
[1769473422658,0.01132,88426.0,88394.0,0.00496409]
[1769473422862,0.1183453,88423.0,88403.0,0.00496409]
[1769473423066,0.545161,88425.0,88403.0,0.00496409]
[1769473423067,0.11312473,88412.0,88403.0,0.00496409]
[1769473423365,0.1183453,88418.0,88403.0,0.00496409]
[1769473423664,0.11310553,88417.0,88403.0,0.00496409]
[1769473423962,0.11790972,88416.0,88403.0,0.00496409]
[1769473424561,0.11310937,88415.0,88403.0,0.00496409]
[1769473424858,0.12397967,88415.0,88405.0,0.00627082]
[1769473425053,0.11310937,88415.0,88405.0,0.00627082]
[1769473425255,0.11790972,88422.0,88405.0,0.00627082]
[1769473425456,0.11310937,88421.0,88405.0,0.00627082]
[1769473425661,0.1172722,88420.0,88405.0,0.00627082]
[1769473426467,0.11310617,88419.0,88405.0,0.00627082]
[1769473426665,0.23037837,88419.0,88405.0,0.00627082]
[1769473426971,0.1172722,88418.0,88405.0,0.00627082]
[1769473427361,0.23037901,88418.0,88405.0,0.00627082]
[1769473427556,0.1172722,88418.0,88405.0,0.00627082]
[1769473427767,0.11310681,88417.0,88405.0,0.00627082]
[1769473428171,0.22991438,88417.0,88405.0,0.00627082]
[1769473428365,0.11680757,88416.0,88405.0,0.00627082]
[1769473428965,0.11310809,88415.0,88405.0,0.00627082]
[1769473429669,0.11310809,88415.0,88400.0,0.113283]
[1769473429969,0.11310809,88415.0,88401.0,0.01025392]
[1769473430168,0.11310809,88415.0,88402.0,0.011323]
[1769473430970,0.23020748,88415.0,88402.0,0.011323]
[1769473432469,0.11744065,88414.0,88402.0,0.011323]
[1769473432970,0.11744065,88414.0,88401.0,0.01025392]
[1769473433669,0.11744065,88414.0,88402.0,0.011323]
[1769473435365,0.11901988,88424.0,88402.0,0.00294034]
[1769473435773,0.11901988,88423.0,88402.0,0.00294034]
[1769473436371,0.53384,88425.0,88402.0,0.00294034]
[1769473436372,0.11901988,88421.0,88402.0,0.00294034]
[1769473436969,0.11901988,88419.0,88402.0,0.00294034]
[1769473437564,0.11901988,88419.0,88403.0,0.011323]
[1769473437970,0.11901988,88419.0,88406.0,0.00299206]
[1769473439471,0.11901988,88419.0,88407.0,0.011323]
[1769473440677,0.11901988,88419.0,88410.0,0.011322]
[1769473442565,0.11901988,88419.0,88411.0,0.08007]
[1769473449484,0.11901988,88419.0,88412.0,0.011322]
[1769473449667,0.53384,88425.0,88412.0,0.011322]
[1769473449668,0.11887723,88424.0,88412.0,0.011322]
[1769473450175,0.11887723,88423.0,88412.0,0.011322]
[1769473451381,0.11887723,88423.0,88412.0,0.10145654]
[1769473452382,0.11887723,88423.0,88413.0,0.09013454]
[1769473454176,0.10192,88427.0,88411.0,0.08007]
[1769473454177,0.10192,88427.0,88420.0,0.011321]
[1769473454378,0.00791564,88433.0,88422.0,0.011321]
[1769473454767,0.1266816,88433.0,88423.0,0.09013454]
[1769473455477,0.1266816,88433.0,88422.0,0.10145554]
[1769473457080,0.00791564,88433.0,88425.0,0.01132]
[1769473457288,0.11943849,88439.0,88429.0,0.01132]
[1769473457685,0.11943849,88439.0,88430.0,0.09013454]
[1769473457988,0.11971749,88447.0,88431.0,0.09013454]
[1769473458376,0.11971749,88446.0,88431.0,0.01132]
[1769473458881,0.11971749,88446.0,88430.0,0.09013454]
[1769473459387,0.11971749,88446.0,88429.0,0.25360467]
[1769473459685,0.11971749,88446.0,88430.0,0.10145454]
[1769473459886,0.11971749,88446.0,88430.0,0.10177339]
[1769473460082,0.11971749,88446.0,88431.0,0.00031885]
[1769473463076,0.11971749,88446.0,88436.0,0.16347013]
[1769473463284,0.11971749,88446.0,88437.0,0.011319]
[1769473464379,0.11971749,88446.0,88436.0,0.16347013]
[1769473464782,0.10192,88448.0,88436.0,0.16347013]
[1769473466584,0.10192,88448.0,88437.0,0.011319]
[1769473467179,0.10192,88448.0,88437.0,0.01824011]
[1769473467894,0.11855998,88450.0,88442.0,0.011318]
[1769473468083,0.0108703,88452.0,88441.0,0.00385178]
[1769473469090,0.0108703,88452.0,88447.0,0.011318]
[1769473469486,0.0108703,88452.0,88447.0,0.01516416]
[1769473469686,0.0108703,88452.0,88447.0,0.00384616]
[1769473470187,0.0108703,88452.0,88444.0,0.09023374]
[1769473471388,0.0108703,88452.0,88443.0,0.1959999]
[1769473471588,0.0108703,88452.0,88444.0,0.011318]
[1769473472293,0.0108703,88452.0,88443.0,0.1959999]
[1769473472294,3e-07,88452.0,88450.0,0.011317]
[1769473472489,3e-07,88452.0,88443.0,0.19215374]
[1769473472490,0.12,88460.0,88449.0,0.011317]
[1769473472792,0.12,88460.0,88450.0,0.16347013]
[1769473473183,0.12,88460.0,88451.0,0.011317]
[1769473473381,0.10979206,88473.0,88460.0,0.011316]
[1769473473598,0.00791206,88473.0,88463.0,0.16347013]
[1769473474289,0.00791206,88473.0,88459.0,0.011316]
[1769473474290,0.12791206,88473.0,88460.0,0.16347013]
[1769473475493,0.00791206,88473.0,88463.0,0.16347013]
[1769473476499,0.00791206,88473.0,88464.0,0.011315]
[1769473477995,0.00791206,88473.0,88463.0,0.16347013]
[1769473477996,0.00791206,88473.0,88463.0,0.25370387]
[1769473478300,0.00791206,88473.0,88463.0,0.16347013]
[1769473478500,0.12791206,88473.0,88462.0,0.09023374]
[1769473479296,0.12786206,88473.0,88462.0,0.09023374]
[1769473479507,0.01125557,88500.0,88458.0,0.10188]
[1769473479508,0.01131,88509.0,88482.0,0.011313]
[1769473479796,0.10188,88508.0,88490.0,0.16347013]
[1769473479996,0.10188,88508.0,88483.0,0.09023374]
[1769473480187,0.10188,88508.0,88469.0,0.1692303]
[1769473480188,0.16347013,88500.0,88469.0,0.1692303]
[1769473480387,0.16347013,88490.0,88466.0,0.11266756]
[1769473480593,0.16347013,88490.0,88464.0,0.1692303]
[1769473480594,0.10188,88489.0,88470.0,0.16347013]
[1769473480901,0.21488009,88489.0,88470.0,0.16347013]
[1769473481197,0.10188,88489.0,88475.0,0.011314]
[1769473481501,0.02482727,88487.0,88471.0,0.011314]
[1769473481702,0.02482727,88487.0,88474.0,0.011314]
[1769473482502,0.02477727,88487.0,88474.0,0.011314]
[1769473483204,0.02477727,88487.0,88470.0,0.17478513]
[1769473483903,0.02477727,88487.0,88473.0,0.011314]
[1769473484397,0.02477727,88487.0,88475.0,0.011314]
[1769473485205,0.02477727,88487.0,88471.0,0.11273597]
[1769473485401,0.02477727,88487.0,88477.0,0.16347013]
[1769473485703,0.02477727,88487.0,88480.0,0.011313]
[1769473487509,0.01858823,88517.0,88493.0,0.11380392]
[1769473487709,0.01858823,88512.0,88494.0,0.11380392]
[1769473487910,0.01858823,88512.0,88500.0,0.16347013]
[1769473489703,0.01858823,88512.0,88501.0,0.011311]
[1769473489908,0.10184,88516.0,88502.0,0.11987841]
[1769473490209,0.11877493,88516.0,88502.0,0.11987841]
[1769473491511,0.11877493,88516.0,88503.0,0.01131]
[1769473491807,0.01693493,88516.0,88506.0,0.01131]
[1769473492010,0.10184,88512.0,88506.0,0.01131]
[1769473492215,0.10184,88512.0,88502.0,0.13118941]
[1769473492909,0.01614375,88523.0,88506.0,0.11987841]
[1769473493114,0.39988,88522.0,88510.0,0.16347013]
[1769473493314,0.42061875,88522.0,88510.0,0.16347013]
[1769473493514,0.02073875,88521.0,88510.0,0.16347013]
[1769473494109,0.02068875,88521.0,88510.0,0.16347013]
[1769473494309,0.10184,88520.0,88510.0,0.16347013]
[1769473494723,0.06193506,88537.0,88510.0,0.16347013]
[1769473494724,0.2241218,88584.0,88518.0,0.11987841]
[1769473495018,0.21996913,88590.0,88520.0,0.16347013]
[1769473495019,0.11297456,88539.0,88520.0,0.16347013]
[1769473495216,0.10184,88538.0,88520.0,0.16347013]
[1769473495405,0.10184,88538.0,88521.0,0.011308]
[1769473495602,0.42932,88537.0,88521.0,0.011308]
[1769473495809,0.42932,88537.0,88520.0,0.28347013]
[1769473496916,0.42932,88537.0,88521.0,0.011308]
[1769473497607,0.011305,88547.0,88521.0,0.011308]
[1769473497807,0.5398,88546.0,88521.0,0.011308]
[1769473498009,0.5398,88546.0,88498.0,0.10184]
[1769473498010,0.16347013,88531.0,88487.0,0.1692303]
[1769473498213,0.16347013,88531.0,88407.0,0.67618053]
[1769473498214,0.16347013,88510.0,88486.0,0.12]
[1769473498402,0.16347013,88496.0,88476.0,0.12]
[1769473498608,0.10184,88495.0,88473.0,0.12]
[1769473498805,0.39984,88494.0,88473.0,0.12]
[1769473499009,0.16347013,88490.0,88470.0,0.011315]
[1769473499412,0.00060042,88489.0,88470.0,0.011315]
[1769473499718,0.00060042,88489.0,88466.0,0.12]
[1769473499719,0.00060042,88488.0,88466.0,0.12]
[1769473499918,0.00060042,88488.0,88471.0,0.09268]
[1769473500316,0.00060042,88486.0,88471.0,0.09268]
[1769473501815,0.011311,88501.0,88472.0,0.12]
[1769473502020,0.54108,88500.0,88472.0,0.12]
[1769473502218,0.1130218,88493.0,88472.0,0.12]
[1769473502419,0.54108,88500.0,88472.0,0.12]
[1769473502812,0.11301222,88499.0,88472.0,0.12]
[1769473503005,0.011311,88502.0,88475.0,0.011314]
[1769473503210,0.11301222,88499.0,88477.0,0.12]
[1769473503417,0.39984,88498.0,88477.0,0.12]
[1769473504119,0.39984,88498.0,88478.0,0.011314]
[1769473504319,0.11300903,88497.0,88478.0,0.011314]
[1769473504513,0.4392,88496.0,88477.0,0.131314]
[1769473504708,0.10184,88495.0,88477.0,0.131314]
[1769473505019,0.10184,88495.0,88480.0,0.011313]
[1769473505220,0.11300967,88494.0,88480.0,0.131313]
[1769473506621,0.39984,88493.0,88480.0,0.131313]
[1769473506813,0.39984,88493.0,88480.0,0.12]
[1769473507215,0.10184,88492.0,88480.0,0.12]
[1769473507413,0.10184,88491.0,88480.0,0.12]
[1769473508710,0.10184,88491.0,88480.0,0.131313]
[1769473509113,0.43956,88494.0,88480.0,0.131313]
[1769473509114,0.10184,88492.0,88480.0,0.131313]
[1769473510024,0.10184,88492.0,88480.0,0.12]
[1769473513031,0.10184,88492.0,88475.0,0.131314]
[1769473514314,0.10184,88492.0,88477.0,0.131314]
[1769473515234,0.10184,88492.0,88477.0,0.12]
[1769473515427,0.10184,88492.0,88473.0,0.01696547]
[1769473515624,0.10184,88492.0,88473.0,0.13696547]
[1769473516132,0.10184,88492.0,88473.0,0.01696547]
[1769473516631,0.10184,88492.0,88473.0,0.00565147]
[1769473516822,0.11301669,88491.0,88473.0,0.00565147]
[1769473522129,0.11301669,88491.0,88473.0,0.12565147]
[1769473523230,0.11301669,88491.0,88474.0,0.011314]
[1769473523530,0.11301669,88491.0,88473.0,0.12565147]
[1769473524317,0.11301669,88491.0,88473.0,0.00565147]
[1769473526427,0.11301669,88491.0,88474.0,0.13522597]
[1769473527419,0.11301669,88491.0,88478.0,0.13522597]
[1769473528325,0.11301669,88491.0,88480.0,0.13522597]
[1769473530734,0.11301669,88491.0,88477.0,0.13522597]
[1769473532034,0.11301669,88491.0,88478.0,0.09267]
[1769473534034,0.11301669,88491.0,88479.0,0.011313]
[1769473534236,0.39988,88490.0,88479.0,0.131313]
[1769473534436,0.39988,88490.0,88480.0,0.12]
[1769473534640,0.39988,88490.0,88480.0,0.25522597]
[1769473535034,0.39988,88490.0,88480.0,0.12]
[1769473535333,0.06187462,88500.0,88479.0,0.14653897]
[1769473535334,0.06187462,88500.0,88483.0,0.12]
[1769473535537,0.39988,88499.0,88484.0,0.12]
[1769473535733,0.54284,88498.0,88487.0,0.12]
[1769473536240,0.1130135,88497.0,88487.0,0.12]
[1769473536635,0.06305563,88504.0,88484.0,0.13522597]
[1769473536636,0.06305563,88504.0,88490.0,0.131312]
[1769473536842,0.1879,88547.0,88478.0,0.2619003]
[1769473536843,0.29804,88505.0,88498.0,0.11835697]
[1769473537038,0.06241615,88515.0,88502.0,0.11835697]
[1769473537232,0.11300392,88509.0,88502.0,0.11835697]
[1769473537431,0.54312,88514.0,88502.0,0.11835697]
[1769473537834,0.11298349,88513.0,88502.0,0.11835697]
[1769473539236,0.19547898,88513.0,88496.0,0.11835697]
[1769473539442,0.08249549,88512.0,88496.0,0.11835697]
[1769473540036,0.08249549,88510.0,88496.0,0.11835697]
[1769473540237,0.08249549,88510.0,88499.0,0.09032291]
[1769473540847,0.1129886,88509.0,88500.0,0.09032291]
[1769473541038,0.1129886,88509.0,88493.0,0.13522597]
[1769473541039,0.08249549,88508.0,88493.0,0.13522597]
[1769473541235,0.08249549,88508.0,88490.0,0.13522597]
[1769473541431,0.08249549,88508.0,88489.0,0.13522597]
[1769473541637,0.00281734,88504.0,88488.0,0.13522597]
[1769473541837,0.00281734,88502.0,88488.0,0.13522597]
[1769473542144,0.00281734,88502.0,88487.0,0.13522597]
[1769473542344,0.54412,88503.0,88487.0,0.13522597]
[1769473542345,0.00281734,88500.0,88487.0,0.13522597]
[1769473542644,0.00281734,88500.0,88486.0,0.13522597]
[1769473543036,0.00281734,88498.0,88486.0,0.13522597]
[1769473545749,0.00281734,88498.0,88485.0,0.13522597]
[1769473545946,0.00281734,88498.0,88484.0,0.25358294]
[1769473546541,0.00281734,88498.0,88484.0,0.13522597]
[1769473546741,0.00281734,88498.0,88483.0,0.13522597]
[1769473547347,0.00281734,88498.0,88481.0,0.11835697]
[1769473548044,0.00643818,88496.0,88481.0,0.11835697]
[1769473551162,0.00643818,88496.0,88481.0,0.25358294]
[1769473551463,0.00643818,88496.0,88482.0,0.1193795]
[1769473553765,0.55543,88503.0,88479.0,0.13522597]
[1769473553766,0.00495773,88494.0,88479.0,0.13522597]
[1769473553962,0.00495773,88494.0,88478.0,0.09267]
[1769473554166,0.54412,88503.0,88478.0,0.09267]
[1769473554167,0.00495773,88493.0,88478.0,0.09267]
[1769473554366,0.00495773,88491.0,88478.0,0.09267]
[1769473554668,0.44727773,88490.0,88478.0,0.09267]
[1769473554966,0.56029059,88490.0,88478.0,0.09267]
[1769473555167,0.44727773,88490.0,88478.0,0.09267]
[1769473555359,0.11301286,88489.0,88478.0,0.09267]
[1769473556961,0.11301286,88489.0,88479.0,0.12]
[1769473561573,0.011312,88488.0,88473.0,0.00565147]
[1769473561764,0.11301286,88489.0,88473.0,0.00565147]
[1769473561970,0.11336539,88489.0,88473.0,0.00565147]
[1769473562166,0.22638017,88489.0,88473.0,0.00565147]
[1769473562676,0.11336539,88488.0,88473.0,0.00565147]
[1769473563474,0.226384,88487.0,88473.0,0.12503097]
[1769473563878,0.11336539,88487.0,88473.0,0.12503097]
[1769473565678,0.44232,88490.0,88473.0,0.12503097]
[1769473566068,0.11301989,88489.0,88473.0,0.12503097]
[1769473566571,0.11301989,88489.0,88478.0,0.1193795]
[1769473571379,0.11301989,88489.0,88478.0,0.25460547]
[1769473572580,0.11301989,88489.0,88479.0,0.1193795]
[1769473575286,0.11301989,88489.0,88479.0,0.25460547]
[1769473576281,0.11301989,88489.0,88479.0,0.13522597]
[1769473576687,0.10184,88488.0,88479.0,0.13522597]
[1769473577384,0.11301478,88487.0,88479.0,0.13522597]
[1769473579191,0.11301478,88487.0,88480.0,0.13522597]
[1769473581788,0.11301478,88487.0,88481.0,0.11664775]
[1769473583194,0.11301478,88487.0,88481.0,0.25187372]
[1769473583688,0.45244,88486.0,88481.0,0.25187372]
[1769473583994,0.45244,88486.0,88481.0,0.13522597]
[1769473585594,0.45292,88485.0,88481.0,0.13522597]
[1769473587196,0.45332,88485.0,88481.0,0.14653897]
[1769473588894,0.45332,88485.0,88481.0,0.13522597]
[1769473589700,0.45416,88487.0,88482.0,0.11664775]
[1769473589897,0.45416,88487.0,88475.0,0.1692303]
[1769473589898,0.11352753,88486.0,88475.0,0.1692303]
[1769473590100,0.11352753,88486.0,88473.0,0.17714236]
[1769473590599,0.11352753,88486.0,88473.0,0.00791206]
[1769473590796,0.465473,88487.0,88473.0,0.00791206]
[1769473590797,0.12432905,88485.0,88473.0,0.00791206]
[1769473591005,0.16330534,88480.0,88470.0,0.09268]
[1769473591300,0.45464,88479.0,88463.0,0.1692303]
[1769473591500,0.45464,88479.0,88459.0,0.11999999]
[1769473591501,0.56766053,88479.0,88461.0,0.1692303]
[1769473591700,0.56766053,88479.0,88460.0,0.33253564]
[1769473592002,0.56766053,88479.0,88461.0,0.011316]
[1769473592205,0.56766053,88479.0,88461.0,0.13131599]
[1769473592405,0.00819786,88478.0,88461.0,0.13131599]
[1769473592998,0.00819786,88476.0,88461.0,0.13131599]
[1769473595607,0.00819786,88476.0,88461.0,0.11999999]
[1769473595816,0.00819786,88476.0,88463.0,0.12837024]
[1769473597006,0.45464,88479.0,88463.0,0.12837024]
[1769473597206,0.46347426,88479.0,88463.0,0.12837024]
[1769473597407,0.1130333,88478.0,88463.0,0.12837024]
[1769473598300,0.1130333,88478.0,88466.0,0.11705524]
[1769473599706,0.1130333,88478.0,88467.0,0.011315]
[1769473599908,0.1130333,88478.0,88466.0,0.11705524]
[1769473603507,0.1130333,88478.0,88466.0,0.12837024]
[1769473607806,0.1130333,88478.0,88466.0,0.11705524]
[1769473608616,0.1130333,88478.0,88467.0,0.12941993]
[1769473609417,3e-07,88478.0,88468.0,0.011315]
[1769473609716,0.10184,88477.0,88469.0,0.11810493]
[1769473612217,0.10184,88477.0,88470.0,0.011315]
[1769473613919,0.10184,88477.0,88469.0,0.11810493]
[1769473616121,0.1152134,88477.0,88465.0,0.11810493]
[1769473620319,0.1152134,88477.0,88466.0,0.011315]
[1769473620620,0.10184,88477.0,88466.0,0.12941993]
[1769473624122,0.10184,88478.0,88466.0,0.12941993]
[1769473624519,0.21487075,88478.0,88466.0,0.12941993]
[1769473625923,0.21487075,88478.0,88468.0,0.16330534]
[1769473626223,0.21487075,88478.0,88469.0,0.12941993]
[1769473627827,0.21487075,88478.0,88469.0,0.11810493]
[1769473629730,0.21487075,88478.0,88468.0,0.16330534]
[1769473629932,0.22915655,88478.0,88468.0,0.16330534]
[1769473630333,0.22915655,88478.0,88466.0,0.011315]
[1769473631538,0.22915655,88478.0,88468.0,0.13585387]
[1769473632728,0.22915655,88478.0,88468.0,0.29915921]
[1769473635529,0.10184,88477.0,88468.0,0.29915921]
[1769473637336,0.10184,88477.0,88468.0,0.13585387]
[1769473639239,0.10184,88477.0,88466.0,0.14716887]
[1769473639740,0.10184,88477.0,88466.0,0.26328069]
[1769473639938,0.1161258,88478.0,88466.0,0.26328069]
[1769473640340,0.11303075,88477.0,88466.0,0.26328069]
[1769473640641,0.11303075,88477.0,88468.0,0.011315]
[1769473640853,0.11303075,88477.0,88468.0,0.13130953]
[1769473641449,0.11303075,88477.0,88470.0,0.011315]
[1769473641754,0.43851861,88476.0,88472.0,0.011314]
[1769473643957,0.011312,88491.0,88472.0,0.131314]
[1769473644257,0.11302755,88490.0,88480.0,0.12]
[1769473644448,0.11302755,88490.0,88462.0,0.011316]
[1769473644449,0.11302755,88490.0,88482.0,0.12]
[1769473644644,0.20492657,88516.0,88484.0,0.11999453]